Workbook

Sheet 貸借対照表 (hidden)
D1: *出力条件
D2: *会計年度 ： H28
D3: *出力帳票選択 ： 財務書類
D4: *団体区分 ： 会計別
D5: *団体／会計コード ： 001 ／ 01 一般会計等 ／ 一般会計
D6: *出力範囲 ： 年次
D7: *出力金額単位 ： 円
D9: 貸借対照表
D10: （平成２９年３月３１日現在）
AA11: （単位：円）
A12: 科目コード | B12: 科目コー | D12: 科目 | P12: 金額 | R12: 科目 | Z12: 金額
D13: 【資産の部】 | R13: 【負債の部】
A14: 1020000 | B14: 1590000 | E14: 固定資産 | P14: 194782485004 | S14: 固定負債 | Z14: 50139995439 | AD14: =IF(AND(AD15="-",AD43="-",AD46="-"),"-",SUM(AD15,AD43,AD46)) -> 194782485004 | AE14: =IF(COUNTIF(AE15:AE19,"-")=COUNTA(AE15:AE19),"-",SUM(AE15:AE19)) -> 50139995439
A15: 1030000 | B15: 1600000 | F15: 有形固定資産 | P15: 182766046166 | T15: 地方債 | Z15: 46452552259 | AD15: =IF(AND(AD16="-",AD32="-",COUNTIF(AD41:AD42,"-")=COUNTA(AD41:AD42)),"-",SUM(AD16,AD32,AD41:AD42)) -> 182766046166 | AE15: 46452552259
A16: 1040000 | B16: 1610000 | G16: 事業用資産 | P16: 92562732726 | T16: 長期未払金 | Z16: 337567000 | AD16: =IF(COUNTIF(AD17:AD31,"-")=COUNTA(AD17:AD31),"-",SUM(AD17:AD31)) -> 92562732726 | AE16: 337567000
A17: 1050000 | B17: 1620000 | H17: 土地 | P17: 40065322121 | T17: 退職手当引当金 | Z17: 3081725000 | AD17: 40065322121 | AE17: 3081725000
A18: 1060000 | B18: 1630000 | H18: 立木竹 | P18: - | T18: 損失補償等引当金 | Z18: 133000000 | AD18: - | AE18: 133000000
A19: 1070000 | B19: 1640000 | H19: 建物 | P19: 131551984055 | T19: その他 | Z19: 135151180 | AD19: 131551984055 | AE19: 135151180
A20: 1080000 | B20: 1650000 | H20: 建物減価償却累計額 | P20: -83462315416 | S20: 流動負債 | Z20: 5847815290 | AD20: -83462315416 | AE20: =IF(COUNTIF(AE21:AE28,"-")=COUNTA(AE21:AE28),"-",SUM(AE21:AE28)) -> 5847815290
A21: 1090000 | B21: 1660000 | H21: 工作物 | P21: 6626192385 | T21: 1年内償還予定地方債 | Z21: 4934483317 | AD21: 6626192385 | AE21: 4934483317
A22: 1100000 | B22: 1670000 | H22: 工作物減価償却累計額 | P22: -4016824822 | T22: 未払金 | Z22: 93162710 | AD22: -4016824822 | AE22: 93162710
A23: 1110000 | B23: 1680000 | H23: 船舶 | P23: 3851638 | T23: 未払費用 | Z23: - | AD23: 3851638 | AE23: -
A24: 1120000 | B24: 1690000 | H24: 船舶減価償却累計額 | P24: -3077927 | T24: 前受金 | Z24: - | AD24: -3077927 | AE24: -
A25: 1130000 | B25: 1700000 | H25: 浮標等 | P25: - | T25: 前受収益 | Z25: - | AD25: - | AE25: -
A26: 1140000 | B26: 1710000 | H26: 浮標等減価償却累計額 | P26: - | T26: 賞与等引当金 | Z26: 291645000 | AD26: - | AE26: 291645000
A27: 1150000 | B27: 1720000 | H27: 航空機 | P27: - | T27: 預り金 | Z27: 528524263 | AD27: - | AE27: 528524263
A28: 1160000 | B28: 1730000 | H28: 航空機減価償却累計額 | P28: - | T28: その他 | Z28: - | AD28: - | AE28: -
A29: 1170000 | B29: 1580000 | H29: その他 | P29: 30380400 | R29: 負債合計 | Z29: 55987810729 | AD29: 30380400 | AE29: =IF(AND(AE14="-",AE20="-"),"-",SUM(AE14,AE20)) -> 55987810729
A30: 1180000 | H30: その他減価償却累計額 | P30: -1792443 | R30: 【純資産の部】 | AD30: -1792443
A31: 1190000 | B31: 1750000 | H31: 建設仮勘定 | P31: 1769012735 | S31: 固定資産等形成分 | Z31: 195081993442 | AD31: 1769012735 | AE31: 193335572111
A32: 1200000 | B32: 1760000 | G32: インフラ資産 | P32: 88706121277 | S32: 余剰分（不足分） | Z32: -54082864853 | AD32: =IF(COUNTIF(AD33:AD40,"-")=COUNTA(AD33:AD40),"-",SUM(AD33:AD40)) -> 88706121277 | AE32: -52336443522
A33: 1210000 | H33: 土地 | P33: 26473843906 | AD33: 26473843906
A34: 1220000 | H34: 建物 | P34: 1353522464 | AD34: 1353522464
A35: 1230000 | H35: 建物減価償却累計額 | P35: -872960260 | AD35: -872960260
A36: 1240000 | H36: 工作物 | P36: 139318591684 | AD36: 139318591684
A37: 1250000 | H37: 工作物減価償却累計額 | P37: -77586614986 | AD37: -77586614986
A38: 1260000 | H38: その他 | P38: 484794503 | AD38: 484794503
A39: 1270000 | H39: その他減価償却累計額 | P39: -484659834 | AD39: -484659834
A40: 1280000 | H40: 建設仮勘定 | P40: 19603800 | AD40: 19603800
A41: 1290000 | G41: 物品 | P41: 4395086387 | AD41: 4395086387
A42: 1300000 | G42: 物品減価償却累計額 | P42: -2897894224 | AD42: -2897894224
A43: 1310000 | F43: 無形固定資産 | P43: 32129522 | AD43: =IF(COUNTIF(AD44:AD45,"-")=COUNTA(AD44:AD45),"-",SUM(AD44:AD45)) -> 32129522
A44: 1320000 | G44: ソフトウェア | P44: 3176928 | AD44: 3176928
A45: 1330000 | G45: その他 | P45: 28952594 | AD45: 28952594
A46: 1340000 | F46: 投資その他の資産 | P46: 11984309316 | AD46: =IF(COUNTIF(AD47:AD58,"-")=COUNTA(AD47:AD58),"-",SUM(AD47,AD51:AD54,AD57:AD58)) -> 11984309316
A47: 1350000 | G47: 投資及び出資金 | P47: 14401789083 | AD47: =IF(COUNTIF(AD48:AD50,"-")=COUNTA(AD48:AD50),"-",SUM(AD48:AD50)) -> 14401789083
A48: 1360000 | H48: 有価証券 | P48: 380355795 | AD48: 380355795
A49: 1370000 | H49: 出資金 | P49: 520693288 | AD49: 520693288
A50: 1380000 | H50: その他 | P50: 13500740000 | AD50: 13500740000
A51: 1390000 | G51: 投資損失引当金 | P51: -13296105510 | AD51: -13296105510
A52: 1400000 | G52: 長期延滞債権 | P52: 482249145 | AD52: 482249145
A53: 1410000 | G53: 長期貸付金 | P53: 462045108 | AD53: 462045108
A54: 1420000 | G54: 基金 | P54: 9923081814 | AD54: =IF(COUNTIF(AD55:AD56,"-")=COUNTA(AD55:AD56),"-",SUM(AD55:AD56)) -> 9923081814
A55: 1430000 | H55: 減債基金 | P55: 3259873975 | AD55: 3259873975
A56: 1440000 | H56: その他 | P56: 6663207839 | AD56: 6663207839
A57: 1450000 | G57: その他 | P57: 100008266 | AD57: 100008266
A58: 1460000 | G58: 徴収不能引当金 | P58: -88758590 | AD58: -88758590
A59: 1470000 | E59: 流動資産 | P59: 2204454314 | AD59: =IF(COUNTIF(AD60:AD68,"-")=COUNTA(AD60:AD68),"-",SUM(AD60:AD63,AD66:AD68)) -> 2204454314
A60: 1480000 | F60: 現金預金 | P60: 1142182998 | AD60: 1142182998
A61: 1490000 | F61: 未収金 | P61: 197641859 | AD61: 197641859
A62: 1500000 | F62: 短期貸付金 | P62: 49898148 | AD62: 49898148
A63: 1510000 | F63: 基金 | P63: 249610290 | AD63: =IF(COUNTIF(AD64:AD65,"-")=COUNTA(AD64:AD65),"-",SUM(AD64:AD65)) -> 249610290
A64: 1520000 | G64: 財政調整基金 | P64: 238656056 | AD64: 238656056
A65: 1530000 | G65: 減債基金 | P65: 10954234 | AD65: 10954234
A66: 1540000 | F66: 棚卸資産 | P66: 263110516 | AD66: 263110516
A67: 1550000 | F67: その他 | P67: 306502370 | AD67: 306502370
A68: 1560000 | B68: 1740000 | F68: 徴収不能引当金 | P68: -4491867 | R68: 純資産合計 | Z68: 140999128589 | AD68: -4491867 | AE68: =IF(AND(AE31="-",AE32="-",#REF!="-"),"-",SUM(AE31,AE32,#REF!)) -> 
A69: 1010000 | B69: 1570000 | D69: 資産合計 | P69: 196986939318 | R69: 負債及び純資産合計 | Z69: 196986939318 | AD69: =IF(AND(AD14="-",AD59="-",#REF!="-"),"-",SUM(AD14,AD59,#REF!)) ->  | AE69: =IF(AND(AE29="-",AE68="-"),"-",SUM(AE29,AE68)) -> 
E71: ※ 下位項目との金額差は、単位未満の四捨五入によるものです。

Sheet 純資産変動計算書 (hidden)
C1: *出力条件
C2: *会計年度 ： H28
C3: *出力帳票選択 ： 財務書類
C4: *団体区分 ： 会計別
C5: *団体／会計コード ： 001 ／ 01 一般会計等 ／ 一般会計
C6: *出力範囲 ： 年次
C7: *出力金額単位 ： 円
C9: 純資産変動計算書
C10: 自 平成２８年４月１日
C11: 至 平成２９年３月３１日
P12: （単位：円）
C13: 科目 | K13: 合計
A14: 科目コード | M14: 固定資産 等形成分 | O14: 余剰分 （不足分） | Q14: 他団体出資等分
A15: 3010000 | C15: 前年度末純資産残高 | K15: 142857373391 | M15: 198104206054 | O15: -55246832663 | Q15: - | U15: =IF(COUNTIF(V15:X15,"-")=COUNTA(V15:X15),"-",SUM(V15:X15)) -> - | V15: - | W15: - | X15: -
A16: 3020000 | D16: 純行政コスト（△） | K16: -36939548326 | O16: -36939548326 | Q16: - | U16: - | V16: - | W16: - | X16: -
A17: 3030000 | D17: 財源 | K17: 35183438928 | O17: 35183438928 | Q17: =IF(COUNTIF(Q18:Q19,"-")=COUNTA(Q18:Q19),"-",SUM(Q18:Q19)) -> - | U17: - | V17: - | W17: =IF(COUNTIF(W18:W19,"-")=COUNTA(W18:W19),"-",SUM(W18:W19)) -> - | X17: -
A18: 3040000 | E18: 税収等 | K18: 23877762815 | O18: 23877762815 | Q18: - | U18: - | V18: - | W18: - | X18: -
A19: 3050000 | E19: 国県等補助金 | K19: 11305676113 | O19: 11305676113 | Q19: - | U19: - | V19: - | W19: - | X19: -
A20: 3060000 | D20: 本年度差額 | K20: -1756109398 | O20: -1756109398 | Q20: =IF(COUNTIF(Q16:Q17,"-")=COUNTA(Q16:Q17),"-",SUM(Q16:Q17)) -> - | U20: - | V20: - | W20: =IF(COUNTIF(W16:W17,"-")=COUNTA(W16:W17),"-",SUM(W16:W17)) -> - | X20: -
A21: 3070000 | D21: 固定資産等の変動（内部変動） | M21: -4666498539 | O21: 4666498539 | U21: - | V21: =IF(COUNTA(V22:V25)=COUNTIF(V22:V25,"-"),"-",SUM(V22,V24,V23,V25)) -> - | W21: =IF(COUNTA(W22:W25)=COUNTIF(W22:W25,"-"),"-",SUM(W22,W24,W23,W25)) -> - | X21: -
A22: 3080000 | E22: 有形固定資産等の増加 | M22: 3464205360 | O22: -3464205360 | U22: - | V22: - | W22: - | X22: -
A23: 3090000 | E23: 有形固定資産等の減少 | M23: -8041470818 | O23: 8041470818 | U23: - | V23: - | W23: - | X23: -
A24: 3100000 | E24: 貸付金・基金等の増加 | M24: 2701948527 | O24: -2701948527 | U24: - | V24: - | W24: - | X24: -
A25: 3110000 | E25: 貸付金・基金等の減少 | M25: -2791181608 | O25: 2791181608 | U25: - | V25: - | W25: - | X25: -
A26: 3120000 | D26: 資産評価差額 | K26: - | M26: - | U26: =IF(COUNTIF(V26:X26,"-")=COUNTA(V26:X26),"-",SUM(V26:X26)) -> - | V26: - | W26: - | X26: -
A27: 3130000 | D27: 無償所管換等 | K27: -102135404 | M27: -102135404 | U27: =IF(COUNTIF(V27:X27,"-")=COUNTA(V27:X27),"-",SUM(V27:X27)) -> - | V27: - | W27: - | X27: -
A28: 3140000 | D28: その他 | K28: - | M28: - | O28: - | U28: =IF(COUNTIF(V28:X28,"-")=COUNTA(V28:X28),"-",SUM(V28:X28)) -> - | V28: - | W28: - | X28: -
A29: 3150000 | D29: 本年度純資産変動額 | K29: -1858244802 | M29: -4768633943 | O29: 2910389141 | Q29: =IF(AND(Q20="-",COUNTIF(#REF!,"-")=COUNTA(#REF!)),"-",SUM(Q20,#REF!)) ->  | U29: =IF(COUNTIF(V29:X29,"-")=COUNTA(V29:X29),"-",SUM(V29:X29)) -> - | V29: =IF(AND(V21="-",COUNTIF(V26:V27,"-")=COUNTA(V26:V27),V28="-"),"-",SUM(V21,V26:V27,V28)) -> - | W29: =IF(AND(W20="-",W21="-",COUNTIF(W26:W27,"-")=COUNTA(W26:W27),W28="-"),"-",SUM(W20,W21,W26:W27,W28)) -> - | X29: -
A30: 3160000 | C30: 本年度末純資産残高 | K30: 140999128589 | M30: 193335572111 | O30: -52336443522 | Q30: =IF(AND(Q15="-",Q29="-"),"-",SUM(Q15,Q29)) ->  | U30: =IF(COUNTIF(V30:X30,"-")=COUNTA(V30:X30),"-",SUM(V30:X30)) -> - | V30: - | W30: - | X30: -
D32: ※ 下位項目との金額差は、単位未満の四捨五入によるものです。

Sheet 行政コスト計算書 (hidden)
C1: *出力条件
C2: *会計年度 ： H28
C3: *出力帳票選択 ： 財務書類
C4: *団体区分 ： 会計別
C5: *団体／会計コード ： 001 ／ 01 一般会計等 ／ 一般会計
C6: *出力範囲 ： 年次
C7: *出力金額単位 ： 円
C9: 行政コスト計算書
C10: 自 平成２８年４月１日
C11: 至 平成２９年３月３１日
O12: （単位：円）
A13: 科目コード | C13: 科目 | N13: 金額
A14: 2020000 | D14: 経常費用 | N14: 38366914822
A15: 2030000 | E15: 業務費用 | N15: 17923182226
A16: 2040000 | F16: 人件費 | N16: 5426092554
A17: 2050000 | G17: 職員給与費 | N17: 3838115042
A18: 2060000 | G18: 賞与等引当金繰入額 | N18: 291645000
A19: 2070000 | G19: 退職手当引当金繰入額 | N19: 298817073
A20: 2080000 | G20: その他 | N20: 997515439
A21: 2090000 | F21: 物件費等 | N21: 12076350479
A22: 2100000 | G22: 物件費 | N22: 5669385718
A23: 2110000 | G23: 維持補修費 | N23: 687935962
A24: 2120000 | G24: 減価償却費 | N24: 5715597638
A25: 2130000 | G25: その他 | N25: 3431161
A26: 2140000 | F26: その他の業務費用 | N26: 420739193
A27: 2150000 | G27: 支払利息 | N27: 238121401
A28: 2160000 | G28: 徴収不能引当金繰入額 | N28: 25685960
A29: 2170000 | G29: その他 | N29: 156931832
A30: 2180000 | E30: 移転費用 | N30: 20443732596
A31: 2190000 | F31: 補助金等 | N31: 7348558370
A32: 2200000 | F32: 社会保障給付 | N32: 10658781819
A33: 2210000 | F33: 他会計への繰出金 | N33: 2343773218
A34: 2220000 | F34: その他 | N34: 92619189
A35: 2230000 | D35: 経常収益 | N35: 2536445103
A36: 2240000 | E36: 使用料及び手数料 | N36: 1454731365
A37: 2250000 | E37: その他 | N37: 1081713738
A38: 2010000 | C38: 純経常行政コスト | N38: -35830469719
A39: 2270000 | D39: 臨時損失 | N39: 1869740356
A40: 2280000 | E40: 災害復旧事業費 | N40: 140964253
A41: 2290000 | E41: 資産除売却損 | N41: 1087693641
A42: 2300000 | E42: 投資損失引当金繰入額 | N42: 640460000
A43: 2310000 | E43: 損失補償等引当金繰入額 | N43: -
A44: 2320000 | E44: その他 | N44: 622462
A45: 2330000 | D45: 臨時利益 | N45: 760661749
A46: 2340000 | E46: 資産売却益 | N46: 6222320
A47: 2350000 | E47: その他 | N47: 754439429
A48: 2260000 | C48: 純行政コスト | N48: -36939548326
D50: ※ 下位項目との金額差は、単位未満の四捨五入によるものです。

Sheet 資金収支計算書 (hidden)
C1: *出力条件
C2: *会計年度 ： H28
C3: *出力帳票選択 ： 財務書類
C4: *団体区分 ： 会計別
C5: *団体／会計コード ： 001 ／ 01 一般会計等 ／ 一般会計
C6: *出力範囲 ： 年次
C7: *出力金額単位 ： 円
C9: 資金収支計算書
C10: 自 平成２８年４月１日
C11: 至 平成２９年３月３１日
N12: （単位：円）
C13: 科目 | M13: 金額
A14: 科目コード
C15: 【業務活動収支】
A16: 4020000 | D16: 業務支出 | M16: 33079115005
A17: 4030000 | E17: 業務費用支出 | M17: 12635382409
A18: 4040000 | F18: 人件費支出 | M18: 5726484554
A19: 4050000 | F19: 物件費等支出 | M19: 6520525251
A20: 4060000 | F20: 支払利息支出 | M20: 238121401
A21: 4070000 | F21: その他の支出 | M21: 150251203
A22: 4080000 | E22: 移転費用支出 | M22: 20443732596
A23: 4090000 | F23: 補助金等支出 | M23: 7348558370
A24: 4100000 | F24: 社会保障給付支出 | M24: 10658781819
A25: 4110000 | F25: 他会計への繰出支出 | M25: 2343773218
A26: 4120000 | F26: その他の支出 | M26: 92619189
A27: 4130000 | D27: 業務収入 | M27: 36432036532
A28: 4140000 | E28: 税収等収入 | M28: 23897008312
A29: 4150000 | E29: 国県等補助金収入 | M29: 10085837272
A30: 4160000 | E30: 使用料及び手数料収入 | M30: 1454842432
A31: 4170000 | E31: その他の収入 | M31: 994348516
A32: 4180000 | D32: 臨時支出 | M32: 140964253
A33: 4190000 | E33: 災害復旧事業費支出 | M33: 140964253
A34: 4200000 | E34: その他の支出 | M34: -
A35: 4210000 | D35: 臨時収入 | M35: 17681988
A36: 4010000 | C36: 業務活動収支 | M36: 3229639262
C37: 【投資活動収支】
A38: 4230000 | D38: 投資活動支出 | M38: 5819490685
A39: 4240000 | E39: 公共施設等整備費支出 | M39: 3237528305
A40: 4250000 | E40: 基金積立金支出 | M40: 702197668
A41: 4260000 | E41: 投資及び出資金支出 | M41: 658369000
A42: 4270000 | E42: 貸付金支出 | M42: 1221395712
A43: 4280000 | E43: その他の支出 | M43: -
A44: 4290000 | D44: 投資活動収入 | M44: 3338738679
A45: 4300000 | E45: 国県等補助金収入 | M45: 1219838841
A46: 4310000 | E46: 基金取崩収入 | M46: 756852613
A47: 4320000 | E47: 貸付金元金回収収入 | M47: 1272643172
A48: 4330000 | E48: 資産売却収入 | M48: 89404053
A49: 4340000 | E49: その他の収入 | M49: -
A50: 4220000 | C50: 投資活動収支 | M50: -2480752006
C51: 【財務活動収支】
A52: 4360000 | D52: 財務活動支出 | M52: 4814099169
A53: 4370000 | E53: 地方債償還支出 | M53: 4790777169
A54: 4380000 | E54: その他の支出 | M54: 23322000
A55: 4390000 | D55: 財務活動収入 | M55: 3779518000
A56: 4400000 | E56: 地方債発行収入 | M56: 3779518000
A57: 4410000 | E57: その他の収入 | M57: -
A58: 4350000 | C58: 財務活動収支 | M58: -1034581169
A59: 4420000 | C59: 本年度資金収支額 | M59: -285693913
A60: 4430000 | C60: 前年度末資金残高 | M60: 869352648
A61: 4435000 | C61: 比例連結割合変更に伴う差額 | M61: - | Q61: -
A62: 4440000 | C62: 本年度末資金残高 | M62: 583658735
A64: 4450000 | C64: 前年度末歳計外現金残高 | M64: 581506584
A65: 4460000 | C65: 本年度歳計外現金増減額 | M65: -22982321
A66: 4470000 | C66: 本年度末歳計外現金残高 | M66: 558524263
A67: 4480000 | C67: 本年度末現金預金残高 | M67: 1142182998
D69: ※ 下位項目との金額差は、単位未満の四捨五入によるものです。

Sheet 有形固定資産
A1: 【様式第５号】
A2: 附属明細書
A3: １．貸借対照表の内容に関する明細
A4: ※下記以外の資産及び負債のうち、その額が資産総額の100分の5を超える科目についても作成する。
A5: （１）資産項目の明細
B7: ①有形固定資産の明細 | J7: （単位：円）
B8: 区分 | D8: 前年度末残高 （A） | E8: 本年度増加額 （B） | F8: 本年度減少額 （C） | G8: 本年度末残高 （A)＋（B)-（C) （D） | H8: 本年度末 減価償却累計額 （E) | I8: 本年度償却額 （F) | J8: 差引本年度末残高 （D)－（E) （G)
B9: 事業用資産 | D9: =SUM(D10:D18) -> 8401507730 | E9: =SUM(E10:E18) -> 243434517 | F9: =SUM(F10:F18) -> 0 | G9: =D9+E9-F9 -> 8644942247 | H9: =SUM(H10:H18) -> 4008223913 | I9: =SUM(I10:I18) -> 193759506 | J9: =G9-H9 -> 4636718334
B10: 土地 | D10: 228823599 | E10: 0 | F10: 0 | G10: 228823599 | H10: 0 | I10: 0 | J10: 228823599
B11: 立木竹 | D11: 0 | E11: 0 | F11: 0 | G11: 0 | H11: 0 | I11: 0 | J11: 0
B12: 建物 | D12: 6560242231 | E12: 234987174 | F12: 0 | G12: 6795229405 | H12: 3179812323 | I12: 144486609 | J12: 3615417082
B13: 工作物 | D13: 1612441900 | E13: 8447343 | F13: 0 | G13: 1620889243 | H13: 828411590 | I13: 49272897 | J13: 792477653
B14: 船舶 | D14: 0 | E14: 0 | F14: 0 | G14: 0 | H14: 0 | I14: 0 | J14: 0
B15: 浮標等 | D15: 0 | E15: 0 | F15: 0 | G15: 0 | H15: 0 | I15: 0 | J15: 0
B16: 航空機 | D16: 0 | E16: 0 | F16: 0 | G16: 0 | H16: 0 | I16: 0 | J16: 0
B17: その他 | D17: 0 | E17: 0 | F17: 0 | G17: 0 | H17: 0 | I17: 0 | J17: 0
B18: 建設仮勘定 | D18: 0 | E18: 0 | F18: 0 | G18: 0 | H18: 0 | I18: 0 | J18: 0
B19: インフラ資産 | D19: =SUM(D20:D24) -> 18901727022 | E19: =SUM(E20:E24) -> 43035688 | F19: =SUM(F20:F24) -> 6 | G19: 18944762704 | H19: =SUM(H20:H24) -> 12712750079 | I19: =SUM(I20:I24) -> 376566257 | J19: 6232012625
B20: 土地 | D20: 657879 | E20: 5127 | F20: 6 | G20: 663000 | H20: 0 | I20: 0 | J20: 663000
B21: 建物 | D21: 165316000 | E21: 0 | F21: 0 | G21: 165316000 | H21: 72654588 | I21: 4810900 | J21: 92661412
B22: 工作物 | D22: 18735753143 | E22: 43030561 | F22: 0 | G22: 18778783704 | H22: 12640095491 | I22: 371755357 | J22: 6138688213
B23: その他 | D23: 0 | E23: 0 | F23: 0 | G23: 0 | H23: 0 | I23: 0 | J23: 0
B24: 建設仮勘定 | D24: 0 | E24: 0 | F24: 0 | G24: 0 | H24: 0 | I24: 0 | J24: 0
B25: 物品 | D25: 124721983 | E25: 0 | F25: 0 | G25: 124721983 | H25: 114073134 | I25: 3633467 | J25: 10648849
B26: 合計 | D26: =D9+D19+D25 -> 27427956735 | E26: 286470205 | F26: 6 | G26: 27714426934 | H26: 16835047126 | I26: 573959230 | J26: 10879379808 | N26: ⇒ＢＳとの一致を確認する。
B29: ②有形固定資産の行政目的別明細 | K29: （単位：円）
B30: 区分 | D30: 生活インフラ・ 国土保全 | E30: 教育 | F30: 福祉 | G30: 環境衛生 | H30: 産業振興 | I30: 消防 | J30: 総務 | K30: 合計
B32: 事業用資産 | D32: =SUM(D33:D41) -> 991903296 | E32: 1583411206 | F32: 192315531 | G32: 580565382 | H32: 539323294 | I32: 934381 | J32: 748265244 | K32: =SUM(D32:J32) -> 4636718334 | N32: =J9-K32 -> 0
B33: 土地 | D33: 78563964 | E33: 57781917 | F33: 4597747 | G33: 4690963 | H33: 3650916 | I33: 934381 | J33: =78500894+102817 -> 78603711 | K33: 228823599 | N33: 0
B34: 立木竹 | D34: 0 | E34: 0 | F34: 0 | G34: 0 | H34: 0 | I34: 0 | J34: 0 | K34: 0 | N34: 0
B35: 建物 | D35: 888212318 | E35: 1308591620 | F35: 136649842 | G35: 495577141 | H35: 437170561 | I35: 0 | J35: =348903601+311999 -> 349215600 | K35: 3615417082 | N35: 0
B36: 工作物 | D36: 25127014 | E36: 217037669 | F36: 51067942 | G36: 80297278 | H36: 98501817 | I36: 0 | J36: =320445941-8 -> 320445933 | K36: 792477653 | N36: 0
B37: 船舶 | D37: 0 | E37: 0 | F37: 0 | G37: 0 | H37: 0 | I37: 0 | J37: 0 | K37: 0 | N37: 0
B38: 浮標等 | D38: 0 | E38: 0 | F38: 0 | G38: 0 | H38: 0 | I38: 0 | J38: 0 | K38: 0 | N38: 0
B39: 航空機 | D39: 0 | E39: 0 | F39: 0 | G39: 0 | H39: 0 | I39: 0 | J39: 0 | K39: 0 | N39: 0
B40: その他 | D40: 0 | E40: 0 | F40: 0 | G40: 0 | H40: 0 | I40: 0 | J40: 0 | K40: 0 | N40: 0
B41: 建設仮勘定 | D41: 0 | E41: 0 | F41: 0 | G41: 0 | H41: 0 | I41: 0 | J41: 0 | K41: 0 | N41: 0
B42: インフラ資産 | D42: =SUM(D43:D47) -> 6231864270 | E42: 0 | F42: 0 | G42: 0 | H42: 77386 | I42: 0 | J42: 70969 | K42: 6232012625 | N42: 0
B43: 土地 | D43: =580487-65842 -> 514645 | E43: 0 | F43: 0 | G43: 0 | H43: 77386 | I43: 0 | J43: 70969 | K43: 663000 | N43: 0
B44: 建物 | D44: =J21 -> 92661412 | E44: 0 | F44: 0 | G44: 0 | H44: 0 | I44: 0 | J44: 0 | K44: 92661412 | N44: 0
B45: 工作物 | D45: =J22 -> 6138688213 | E45: 0 | F45: 0 | G45: 0 | H45: 0 | I45: 0 | J45: 0 | K45: 6138688213 | N45: 0
B46: その他 | D46: 0 | E46: 0 | F46: 0 | G46: 0 | H46: 0 | I46: 0 | J46: 0 | K46: 0 | N46: 0
B47: 建設仮勘定 | D47: 0 | E47: 0 | F47: 0 | G47: 0 | H47: 0 | I47: 0 | J47: 0 | K47: 0 | N47: 0
B48: 物品 | D48: 6 | E48: 1466169 | F48: 369602 | G48: 1926212 | H48: 294009 | I48: 0 | J48: =5689141+903710 -> 6592851 | K48: 10648849 | N48: 0
B49: 合計 | D49: =D32+D42+D48 -> 7223767572 | E49: 1584877375 | F49: 192685133 | G49: 582491594 | H49: 539694689 | I49: 934381 | J49: 754929064 | K49: 10879379808 | N49: 0
N53: ↑全て0になることを確認する。

Sheet 投資及び出資金
G2: 貸借対照表 投資および出資金 | H2: 判定 (貸借対照表 計上額)
H3: =IF(G3=F11+D19+L33,"○","×") -> ×
C5: ③投資及び出資金の明細
C6: 市場価格のあるもの | J6: （単位：円）
C7: 銘柄名 | D7: 株数・口数など （A） | E7: 時価単価 （B） | F7: 貸借対照表計上額 （A）×（B) （C) | G7: 取得単価 （D) | H7: 取得原価 （A）×（D) （E) | I7: 評価差額 （C）－（E) （F) | J7: （参考）財産に関する 調書記載額
A8: 合計行開始
C9: 該当なし | F9: =IFERROR(D9*E9,"") -> 0 | H9: =IFERROR(D9*G9,"") -> 0 | I9: =IFERROR(F9-H9,"") -> 0
A10: 合計行終了 | I10: 0
C11: 合計 | D11: =IFERROR(SUM(D8:D10),"") -> 0 | E11: =IFERROR(SUM(E8:E10),"") -> 0 | F11: =IFERROR(SUM(F8:F10),"") -> 0 | G11: =IFERROR(SUM(G8:G10),"") -> 0 | H11: =IFERROR(SUM(H8:H10),"") -> 0 | I11: 0 | J11: =IFERROR(SUM(J8:J10),"") -> 0
C14: 市場価格のないもののうち連結対象団体（会計）に対するもの | L14: （単位：円）
C15: 相手先名 | D15: 出資金額 （貸借対照表計上額） （A) | E15: 資産 （B) | F15: 負債 （C) | G15: 純資産額 （B）－（C) （D) | H15: 資本金 （E) | I15: 出資割合（％） （A）/（E) （F) | J15: 実質価額 （D)×（F) （G) | K15: 投資損失引当金 計上額 （H) | L15: （参考）財産に関する 調書記載額
A16: 合計行開始
C17: 該当なし | G17: =IFERROR(E17-F17,"") -> 0 | I17: =IFERROR(D17/H17,"") ->  | J17: =IFERROR(G17*I17,"") -> 
A18: 合計行終了
C19: 合計 | D19: =IFERROR(SUM(D16:D18),"") -> 0 | E19: =IFERROR(SUM(E16:E18),"") -> 0 | F19: =IFERROR(SUM(F16:F18),"") -> 0 | G19: =IFERROR(E19-F19,"") -> 0 | H19: =IFERROR(SUM(H16:H18),"") -> 0 | I19: =IFERROR(D19/H19,"") ->  | J19: =IFERROR(SUM(J16:J18),"") -> 0 | K19: =IFERROR(SUM(K16:K18),"") -> 0 | L19: =IFERROR(SUM(L16:L18),"") -> 0
C22: 市場価格のないもののうち連結対象団体（会計）以外に対するもの | M22: （単位：円）
C23: 相手先名 | D23: 出資金額 （A) | E23: 資産 （B) | F23: 負債 （C) | G23: 純資産額 （B）－（C) （D) | H23: 資本金 （E) | I23: 出資割合（％） （A）/（E) （F) | J23: 実質価額 （D)×（F) （G) | K23: 強制評価減 （H) | L23: 貸借対照表計上額 （Ａ）－（Ｈ） （Ｉ） | M23: （参考）財産に関する 調書記載額
A24: 合計行開始
C25: 北海道曹達 株式会社 | D25: 200000 | E25: 8586885000 | F25: 2532709000 | G25: =IFERROR(E25-F25,"") -> 6054176000 | H25: 1224519000 | I25: =IFERROR(D25/H25,"") -> 0.0001633294379 | J25: =IFERROR(G25*I25,"") -> 988825.1632 | K25: 0 | L25: =IFERROR(D25-K25,"") -> 200000 | M25: 200000
C26: 北海道私学振興基金協会出資金 | D26: 33000 | E26: 6207627784 | F26: 2053228209 | G26: =IFERROR(E26-F26,"") -> 4154399575 | H26: 621702000 | I26: =IFERROR(D26/H26,"") -> 5.308009303e-05 | J26: =IFERROR(G26*I26,"") -> 220515.9159 | K26: 0 | L26: =IFERROR(D26-K26,"") -> 33000 | M26: 33000
C27: 北海道農業信用基金協会出資金 | D27: 500000 | E27: 399080932000 | F27: 370757475000 | G27: =IFERROR(E27-F27,"") -> 28323457000 | H27: 28323456000 | I27: =IFERROR(D27/H27,"") -> 1.765321294e-05 | J27: =IFERROR(G27*I27,"") -> 500000.0177 | K27: 0 | L27: =IFERROR(D27-K27,"") -> 500000 | M27: 500000
C28: 北海道土地改良事業団体連合会出資金 | D28: 150000 | E28: 4453606042 | F28: 1567446940 | G28: =IFERROR(E28-F28,"") -> 2886159102 | H28: 2886159102 | I28: =IFERROR(D28/H28,"") -> 5.197218681e-05 | J28: =IFERROR(G28*I28,"") -> 150000 | K28: 0 | L28: =IFERROR(D28-K28,"") -> 150000 | M28: 150000
C29: 北海道市町村職員福祉協会育英事業出資金 | D29: 750000 | G29: =IFERROR(E29-F29,"") -> 0 | I29: =IFERROR(D29/H29,"") ->  | J29: =IFERROR(G29*I29,"") ->  | K29: 0 | L29: =IFERROR(D29-K29,"") -> 750000 | M29: 750000
C30: ようてい森林組合出資金 | D30: 2119000 | E30: 1048178894 | F30: 665433350 | G30: =IFERROR(E30-F30,"") -> 382745544 | H30: 100640000 | I30: =IFERROR(D30/H30,"") -> 0.02105524642 | J30: =IFERROR(G30*I30,"") -> 8058801.746 | K30: 0 | L30: =IFERROR(D30-K30,"") -> 2119000 | M30: 2119000
C31: 地方公共団体金融機構出資金 | D31: 400000 | E31: 24786267000000 | F31: 24545185000000 | G31: =IFERROR(E31-F31,"") -> 241082000000 | H31: 16602000000 | I31: =IFERROR(D31/H31,"") -> 2.409348271e-05 | J31: =IFERROR(G31*I31,"") -> 5808504.999 | K31: 0 | L31: =IFERROR(D31-K31,"") -> 400000 | M31: 400000
A32: 合計行終了 | G32: =IFERROR(E32-F32,"") -> 0 | I32: =IFERROR(D32/H32,"") ->  | J32: =IFERROR(G32*I32,"") ->  | L32: =IFERROR(D32-K32,"") -> 0
C33: 合計 | D33: =IFERROR(SUM(D24:D32),"") -> 4152000 | E33: =IFERROR(SUM(E24:E32),"") -> 25205644229720 | F33: =IFERROR(SUM(F24:F32),"") -> 24922761292499 | G33: 282882937221 | H33: =IFERROR(SUM(H24:H32),"") -> 49758476102 | I33: 8.344306991e-05 | J33: 23604620.71 | K33: =IFERROR(SUM(K24:K32),"") -> 0 | L33: 4152000 | M33: =IFERROR(SUM(M24:M32),"") -> 4152000

Sheet 基金
F2: 貸借対照表 固定資産 基金 | G2: 貸借対照表 流動資産 基金 | H2: 貸借対照表 基金合計 | I2: 判定
H3: =SUM(F3:G3) -> 0 | I3: =IF(H3=H20,"○","×") -> ×
C5: ④基金の明細 | I5: （単位：円）
C6: 種類 | D6: 現金預金 | E6: 有価証券 | F6: 土地 | G6: その他 | H6: 合計 (貸借対照表計上額) | I6: (参考)財産に関する 調書記載額
A8: 合計行開始
C9: 財政調整基金 | D9: 495813677 | H9: =SUM(D9:G9) -> 495813677 | I9: 495813677
C10: 減債基金 | D10: 163192761 | H10: 163192761 | I10: 163192761
C11: 公共施設整備基金 | D11: 423304152 | H11: 423304152 | I11: 423304152
C12: 土地開発基金 | D12: 17643375 | H12: 17643375 | I12: 17643375
C13: 農産物価格安定基金 | D13: 51177861 | H13: 51177861 | I13: 51177861
C14: 敬老福祉基金 | D14: 135855454 | H14: 135855454 | I14: 135855454
C15: ふるさと創生基金 | D15: 50000000 | H15: 50000000 | I15: 50000000
C16: 畑地かんがい排水施設管理基金 | D16: 48674372 | H16: 48674372 | I16: 48674372
C17: さくら・もみじ基金 | D17: 53105518 | H17: 53105518 | I17: 53105518
C18: 移住・定住支援事業基金 | D18: 97000000 | H18: 97000000 | I18: 97000000
A19: 合計行終了
C20: 合計 | D20: =IFERROR(SUM(D8:D19),"") -> 1535767170 | E20: 0 | F20: 0 | G20: 0 | H20: 1535767170 | I20: 1535767170

Sheet 貸付金
E2: 貸借対照表 長期貸付金 | F2: 判定 (長期貸付金 貸借対照表計上額) | G2: 貸借対照表 短期貸付金 | H2: 判定 (短期貸付金 貸借対照表計上額)
F3: =IF(D32=E3,"○","×") -> ○ | H3: =IF(F32=G3,"○","×") -> ○
C5: ⑤貸付金の明細 | H5: （単位：円）
C6: 相手先名または種別 | D6: 長期貸付金 | F6: 短期貸付金 | H6: （参考） 貸付金計
D7: 貸借対照表計上額 | E7: 徴収不能引当金 計上額 | F7: 貸借対照表計上額 | G7: 徴収不能引当金 計上額
C8: 地方公営事業
A9: 合計行開始
C10: 該当なし
A11: 合計行終了
C12: 一部事務組合・広域連合
A13: 合計行開始
C14: 該当なし
A15: 合計行終了
C16: 地方独立行政法人
A17: 合計行開始
C18: 該当なし
A19: 合計行終了
C20: 地方三公社
A21: 合計行開始
C22: 該当なし
A23: 合計行終了
C24: 第三セクター等
A25: 合計行開始
C26: 該当なし
A27: 合計行終了
C28: その他の貸付金
A29: 合計行開始
C30: 該当なし
A31: 合計行終了
C32: 合計 | D32: =IFERROR(SUM(D9:D31),"") -> 0 | E32: =IFERROR(SUM(E9:E31),"") -> 0 | F32: =IFERROR(SUM(F9:F31),"") -> 0 | G32: =IFERROR(SUM(G9:G31),"") -> 0 | H32: =IFERROR(SUM(H9:H31),"") -> 0

Sheet 長期延滞債権
E2: 貸借対照表 長期延滞債権 | F2: 判定 (貸借対照表計上額)
D3: - | F3: =IF(D33=E3,"○","×") -> ×
C5: ⑥長期延滞債権の明細 | E5: （単位：円）
C6: 相手先名または種別 | D6: 貸借対照表計上額 | E6: 徴収不能引当金計上額
C7: 【貸付金】
C9: 第三セクター等
A10: 合計行開始
C11: 該当なし
A12: 合計行終了
C13: その他の貸付金
A14: 合計行開始
C15: 該当なし
A16: 合計行終了
C17: 小計 | D17: =IFERROR(SUM(D10:D16),"") -> 0 | E17: =IFERROR(SUM(E10:E16),"") -> 0
C18: 【未収金】
C20: 税等未収金
A21: 合計行開始
C22: 村民税 | D22: 4144188 | E22: 153350
C23: 固定資産税 | D23: 1249330 | E23: 46230
C24: 軽自動車税 | D24: 287200 | E24: 10628
C25: 特別土地保有税 | D25: 63700 | E25: 2357
A26: 合計行終了
C27: その他の未収金
A28: 合計行開始
C29: 村営住宅使用料 | D29: 0 | E29: 0
C30: 督促手数料 | D30: 55800 | E30: 2065
A31: 合計行終了
C32: 小計 | D32: =IFERROR(SUM(D19:D31),"") -> 5800218 | E32: =IFERROR(SUM(E19:E31),"") -> 214630
C33: 合計 | D33: =IFERROR(SUM(D17,D32),"") -> 5800218 | E33: =IFERROR(SUM(E17,E32),"") -> 214630

Sheet 未収金
E2: 貸借対照表 未収金 | F2: 判定 (貸借対照表計上額)
F3: =IF(D33=E3,"○","×") -> ×
C5: ⑦未収金の明細 | E5: （単位：円）
C6: 相手先名または種別 | D6: 貸借対照表計上額 | E6: 徴収不能引当金計上額
C7: 【貸付金】
C9: 第三セクター等
A10: 合計行開始
C11: 該当なし
A12: 合計行終了
C13: その他の貸付金
A14: 合計行開始
C15: 該当なし
A16: 合計行終了
C17: 小計 | D17: =IFERROR(SUM(D10:D16),"") -> 0 | E17: =IFERROR(SUM(E10:E16),"") -> 0
C18: 【未収金】
C20: 税等未収金
A21: 合計行開始
C22: 村民税 | D22: 1007898 | E22: 37295
C23: 固定資産税 | D23: 16926100 | E23: 626331
C24: 軽自動車税 | D24: 196300 | E24: 7264
C25: 特別土地保有税 | D25: 0 | E25: 0
A26: 合計行終了
C27: その他の未収金
A28: 合計行開始
C29: 村営住宅使用料 | D29: 37200 | E29: 1377
C30: 督促手数料 | D30: 15500 | E30: 574
A31: 合計行終了
C32: 小計 | D32: =IFERROR(SUM(D21:D31),"") -> 18182998 | E32: =IFERROR(SUM(E21:E31),"") -> 672841
C33: 合計 | D33: =IFERROR(SUM(D17,D32),"") -> 18182998 | E33: =IFERROR(SUM(E17,E32),"") -> 672841

Sheet 地方債（借入先別）
E2: 貸借対照表 固定負債 地方債 | G2: 判定 (地方債残高) | H2: 貸借対照表 流動負債 1年内償還予定地方債 | J2: 判定 (うち1年内 償還予定)
G3: =IF(E3=C22-D22,"○","×") -> × | J3: =IF(D22=H3,"○","×") -> ×
B6: （２）負債項目の明細
B7: ①地方債（借入先別）の明細 | L7: （単位：円）
B8: 種類 | C8: 地方債残高 | E8: 政府資金 | F8: 地方公共団体 金融機構 | G8: 市中銀行 | H8: その他の 金融機関 | I8: 市場公募債 | L8: その他
D9: うち1年内償還予定 | J9: うち共同発行債 | K9: うち住民公募債
B10: 【通常分】
B11: 一般公共事業 | C11: 0 | D11: 0
B12: 公営住宅建設 | C12: 271368176 | D12: 13646968 | E12: 134068176 | L12: 137300000
B13: 災害復旧 | C13: 1656576 | D13: 273345 | E13: 1656576
B14: 教育・福祉施設 | C14: 49948649 | D14: 22111901 | E14: 49948649
B15: 一般単独事業 | C15: 102417025 | D15: 19717732 | F15: 102417025
B16: その他 | C16: 837672757 | D16: 55248537 | E16: 837672757
B17: 【特別分】
B18: 臨時財政対策債 | C18: 1095391142 | D18: 82153370 | E18: 964139142 | H18: 131252000
B19: 減税補てん債
B20: 退職手当債
B21: その他 | C21: 15282182 | D21: 7425142 | E21: 5458647 | F21: 9823535
B22: 合計 | C22: =IFERROR(SUM(C11:C16)+SUM(C18:C21),"") -> 2373736507 | D22: =IFERROR(SUM(D11:D16)+SUM(D18:D21),"") -> 200576995 | E22: =IFERROR(SUM(E11:E16)+SUM(E18:E21),"") -> 1992943947 | F22: =IFERROR(SUM(F11:F16)+SUM(F18:F21),"") -> 112240560 | G22: 0 | H22: 131252000 | I22: 0 | J22: =IFERROR(SUM(J11:J16)+SUM(J18:J21),"") -> 0 | K22: =IFERROR(SUM(K11:K16)+SUM(K18:K21),"") -> 0 | L22: =IFERROR(SUM(L11:L16)+SUM(L18:L21),"") -> 137300000

Sheet 地方債（利率別など）
C3: ②地方債（利率別）の明細 | K3: （単位：円）
C4: 地方債残高 | D4: 1.5％以下 | E4: 1.5％超 2.0％以下 | F4: 2.0％超 2.5％以下 | G4: 2.5％超 3.0％以下 | H4: 3.0％超 3.5％以下 | I4: 3.5％超 4.0％以下 | J4: 4.0％超 | K4: （参考） 加重平均 利率 | N4: 貸借対照表 固定負債 地方債 ＋ 流動負債 1年内償還予定地方債 | O4: 判定 (地方債残高)
C6: =IFERROR(SUM(D6:J6),"") -> 2373736507 | D6: 2130174070 | E6: 168486156 | F6: 17600809 | J6: 57475472 | K6: 0.0084072 | O6: =IF(C6=N6,"○","×") -> ×
C9: ③地方債（返済期間別）の明細 | L9: （単位：円）
C10: 地方債残高 | D10: １年以内 | E10: １年超 ２年以内 | F10: ２年超 ３年以内 | G10: ３年超 ４年以内 | H10: ４年超 ５年以内 | I10: ５年超 10年以内 | J10: 10年超 15年以内 | K10: 15年超 20年以内 | L10: 20年超 | N10: 貸借対照表 固定負債 地方債 | O10: 判定 (地方債残高) | P10: 貸借対照表 流動負債 1年内償還予定地方債 | Q10: 判定 (地方債残高)
C12: =IFERROR(SUM(D12:L12),"") -> 2373736507 | D12: 200576995 | E12: 221355320 | F12: 224249397 | G12: 221534201 | H12: 214008741 | I12: 834874001 | J12: 335109492 | K12: 103212841 | L12: 18815519 | O12: =IF(SUM(E12:L12)=N12,"○","×") -> × | Q12: =IF(D12=P12,"○","×") -> ×
C15: ④特定の契約条項が付された地方債の概要 | I15: （単位：円）
C16: 特定の契約条項が 付された地方債残高 | D16: 契約条項の概要
C18: 該当なし

Sheet 引当金
B3: ⑤引当金の明細 | G3: （単位：円）
B4: 区分 | C4: 前年度末残高 | D4: 本年度増加額 | E4: 本年度減少額 | G4: 本年度末残高
E5: 目的使用 | F5: その他 | J5: 貸借対照表 各引当金 金額 | K5: 判定 (本年度末残高)
B6: 固定資産
B7: 投資損失引当金 | C7: 0 | D7: 0 | E7: 0 | F7: 0 | G7: =IFERROR(C7+D7-E7-F7,"") -> 0 | K7: =IF(G7=-J7,"○","×") -> ○
B8: 徴収不能引当金 | C8: 1192283 | D8: 0 | E8: 657019 | F8: 320634 | G8: =IFERROR(C8+D8-E8-F8,"") -> 214630 | K8: =IF(G8=-J8,"○","×") -> ×
B9: 流動資産 | K9: ―
B10: 徴収不能引当金 | C10: 1297026 | D10: 0 | E10: 0 | F10: 624185 | G10: =IFERROR(C10+D10-E10-F10,"") -> 672841 | K10: =IF(G10=-J10,"○","×") -> ×
B11: 固定負債 | K11: ―
B12: 退職手当引当金 | C12: 176776000 | E12: 0 | F12: 27481000 | G12: =IFERROR(C12+D12-E12-F12,"") -> 149295000 | K12: =IF(G12=J12,"○","×") -> ×
B13: 損失補償等引当金 | C13: 0 | D13: 0 | E13: 0 | F13: 0 | G13: =IFERROR(C13+D13-E13-F13,"") -> 0 | K13: =IF(G13=J13,"○","×") -> ○
B14: 流動負債 | K14: ―
B15: 賞与等引当金 | C15: 21098444 | D15: 21831498 | E15: 21098444 | F15: 0 | G15: =IFERROR(C15+D15-E15-F15,"") -> 21831498 | K15: =IF(G15=J15,"○","×") -> ×
B16: 合計 | C16: =IFERROR(SUM(C6:C15),"") -> 200363753 | D16: =IFERROR(SUM(D6:D15),"") -> 21831498 | E16: 21755463 | F16: 28425819 | G16: 172013969

Sheet 補助金
G2: 行政コスト計算書 補助金等 | I2: 判定 (金額)
I3: =IF(G31=G3,"○","×") -> ×
B5: ２．行政コスト計算書の内容に関する明細
B6: （１）補助金等の明細 | I6: （単位：円）
B7: 区分 | D7: 名称 | E7: 相手先 | G7: 金額 | I7: 支出目的
A8: 合計行開始
B9: 他団体への公共施設等整備補助金等 (所有外資産分） | D9: 該当なし
A10: 合計行終了
D11: 計 | G11: =IFERROR(SUM(G8:G10),"") -> 0
A12: 合計行開始
B13: その他の補助金等 | D13: 北後志消防組合負担金 | E13: 北後志消防組合 | G13: 149633000
D14: 後志広域連合負担金 | E14: 後志広域連合 | G14: 26747604
D15: 村社会福祉協議会運営事業補助金 | E15: 赤井川村社会福祉協議会 | G15: 16357000
D16: 学校給食業務負担金 | G16: 12727600
D17: 市町村生活バス運行補助金 | G17: 12725120
D18: 橋梁点検業務負担金 | G18: 12268800
D19: 後期高齢者医療広域連合療養給付費負担金 | E19: 北海道後期高齢者医療広域連合 | G19: 10189891
D20: 土づくり対策事業補助金 | G20: 9600000
D21: 北後志衛生施設組合負担金 | E21: 北後志衛生施設組合 | G21: 9358000
D22: 北しりべし廃棄物処理広域連合負担金 | E22: 北しりべし廃棄物処理広域連合 | G22: 7900000
D23: 農業振興センター運営事業補助金 | G23: 7687700
D24: 臨時福祉給付金 | E24: 対象者 | G24: 7071000
D25: 中学生海外研修事業補助金 | G25: 6245000
D26: 村商工会運営事業補助金 | G26: 6000000
D27: 青年就農給付金 | G27: 5973949
D28: その他 | G28: =48907957-498551 -> 48409406
A29: 合計行終了
D30: 計 | G30: =IFERROR(SUM(G12:G29),"") -> 348894070
B31: 合計 | G31: =IFERROR(SUM(G11,G30),"") -> 348894070

Sheet 財源明細
H2: 純資産変動計算書 財源 | I2: 判定 (一般会計 金額) | J2: 純資産変動計算書 税収等 | K2: 判定 (税収等 金額) | L2: 純資産変動計算書 国県等補助金 | M2: 判定 (国県等補助金 金額)
I3: =IF(SUM($F34)=$H$3,"○","×") -> × | K3: =IF(SUM($F22)=$J$3,"○","×") -> × | M3: =IF(SUM($F33)=$L$3,"○","×") -> ×
B5: ３．純資産変動計算書の内容に関する明細
B6: （１）財源の明細 | F6: （単位：円）
B7: 会計 | C7: 区分 | D7: 財源の内容 | F7: 金額
A8: 合計行開始
B9: 一般会計 | C9: 税収等 | D9: 村税 | F9: =304849052-(1541411864-1519822440) -> 283259628
D10: 地方譲与税 | F10: 40002000
D11: 利子割交付金 | F11: 101000
D12: 配当割交付金 | F12: 189000
D13: 株式等譲渡所得割交付金 | F13: 113000
D14: 地方消費税交付金 | F14: 23140000
D15: 自動車取得税交付金 | F15: 6800000
D16: 地方特例交付金 | F16: 88000
D17: 地方交付税 | F17: 1106226000
D18: 交通安全対策特別交付金 | F18: 0
D19: 分担金及び負担金 | F19: 2386810
D20: 寄付金 | F20: 57517002
A21: 合計行終了
D22: 小計 | F22: =SUM(F8:F21) -> 1519822440
A23: 合計行開始 | D23: 資本的 補助金
C24: 国県等補助金 | E24: 国庫支出金 | F24: 120598000
E25: 道支出金 | F25: 0
A26: 合計行終了
E27: 計 | F27: =SUM(F23:F26) -> 120598000
A28: 合計行開始 | D28: 経常的 補助金
E29: 国庫支出金 | F29: =177827320-F24 -> 57229320
E30: 道支出金 | F30: =56813442 -> 56813442
A31: 合計行終了
E32: 計 | F32: =SUM(F28:F31) -> 114042762
D33: 小計 | F33: =SUM(F27,F32) -> 234640762
C34: 合計 | F34: =SUM(F22,F33) -> 1754463202

Sheet 財源情報明細
B4: （２）財源情報の明細 | E4: （単位：円）
B5: 区分 | C5: 金額 | D5: 内訳
D6: 国県等補助金 | E6: 地方債 | F6: 税収等 | G6: その他 | J6: 金額 | K6: 判定
B7: 純行政コスト | C7: =IFERROR(SUM(D7:G7),"") -> 2234896759 | D7: =財源明細!F32 -> 114042762 | E7: =294317000-E8 -> 141517000 | F7: =F22-F8-F9 -> 1402506828 | G7: =J7-D7-E7-F7 -> 576830169 | I7: 純資産変動計算書 純行政コストの合計 | J7: 2234896759 | K7: =IF(J7=C7,"○","×") -> ○
B8: 有形固定資産等の増加 | C8: =IFERROR(SUM(D8:G8),"") -> 286470205 | D8: =財源明細!F27 -> 120598000 | E8: 152800000 | F8: =J8-D8-E8-G8 -> 13072205 | G8: 0 | I8: 純資産変動計算書 有形固定資産等の増加 固定資産等形成分 | J8: 286470205 | K8: =IF(J8=C8,"○","×") -> ○
B9: 貸付金・基金等の増加 | C9: 7382823 | D9: 0 | E9: 0 | F9: =J9-D9-E9-G9 -> 6405170 | G9: 977653 | I9: 純資産変動計算書 貸付金・基金等の増加 固定資産等形成分 | J9: 7382823 | K9: =IF(J9=C9,"○","×") -> ○
B10: その他 | C10: 0 | D10: 0 | E10: 0 | F10: 0 | G10: 0 | I10: 純資産変動計算書 その他の合計 | J10: 0 | K10: =IF(J10=C10,"○","×") -> ○
B11: 合計 | C11: 2528749787 | D11: =IFERROR(SUM(D7:D10),"") -> 234640762 | E11: =IFERROR(SUM(E7:E10),"") -> 294317000 | F11: 1421984203 | G11: 577807822
D15: NW国県等補助金と一致 | E15: CF地方債収入と一致 | F15: NW税収等-CF地方債償還支出-CF本年度資金収支額-CF公共施設等整備費支出に含まれる長期未払支払額と一致
D16: OK | E16: OK | F16: OK
E19: NW税収等 | F19: 1519822440
E20: CF地方債償還支出 | F20: 184045927
E21: CF本年度収支差額 | F21: -86207690
E22: 差引 | F22: =F19-F20-F21 -> 1421984203

Sheet 資金明細
D2: 資金収支計算書 本年度末資金残高 | E2: 判定 （本年度末残高）
E3: =IF(C11=D3,"○","×") -> ×
B5: ４．資金収支計算書の内容に関する明細
B6: （１）資金の明細 | C6: （単位：円）
B7: 種類 | C7: 本年度末残高
A8: 合計行開始
B9: 要求払預金 | C9: 109842111
A10: 合計行終了
B11: 合計 | C11: =IFERROR(SUM(C8:C10),"") -> 109842111

Sheet 財源会計テンプレート (hidden)
A2: 合計行開始
C3: 税収等
A6: 合計行終了
D7: 小計 | F7: =SUM(F2:F6) -> 0
A8: 合計行開始 | D8: 資本的 補助金
C9: 国県等補助金
A12: 合計行終了
E13: 計 | F13: =SUM(F8:F12) -> 0
A14: 合計行開始 | D14: 経常的 補助金
A18: 合計行終了
E19: 計 | F19: =SUM(F14:F18) -> 0
D20: 小計 | F20: =SUM(F13,F19) -> 0
C21: 合計 | F21: =SUM(F7,F20) -> 0
